[Event "FIDE World Rapid-ch Open 2018"]
[White "Sjugirov, Sanan"]
[Black "Bazeev, German"]
[Site "St. Petersburg"]
[Round "6.10"]
[Annotator "ChessBase"]
[Result "1-0"]
[Date "2018.12.27"]
[WhiteElo "2663"]
[BlackElo "2416"]
[PlyCount "47"]
[TimeControl "900+10"]

1. d4 {[%emt 0:0:0]} Nf6 {[%emt 0:0:0]} 2. c4 {[%emt 0:0:0]} e6 {[%emt 0:0:0]} 3. Nc3 {[%emt 0:0:7]} Bb4 {[%emt 0:0:0]} 4. Qc2 {[%emt 0:0:2]} Nc6 {[%emt 0:1:33]} 5. Nf3 {[%emt 0:0:6]} 0-0 {[%emt 0:0:18]} 6. Bd2 {[%emt 0:0:57]
} d5 {[%emt 0:0:56]} 7. e3 {[%emt 0:0:10]} Ne7 {[%emt 0:0:54]} 8. a3 {[%emt 0:0:50]} Bxc3 {[%emt 0:0:2]} 9. Bxc3 {[%emt 0:0:2]} b6 {[%emt 0:0:8]
} 10. b3 {[%emt 0:1:50]} a5 {[%emt 0:0:53]} 11. a4 {[%emt 0:0:0]} Bb7 {[%emt 0:0:11]} 12. Bd3 {[%emt 0:1:6]} Nc6 {[%emt 0:1:30]} 13. 0-0 {[%emt 0:1:47]} Qe7 {[%emt 0:0:36]} 14. Rfc1 {[%emt 0:1:2]} h6 {[%emt 0:0:0]} 15. Qe2 {[%emt 0:0:16]} Nb4 {[%emt 0:0:21]} 16. Bxb4 {[%emt 0:0:14]} Qxb4 {[%emt 0:1:18]} 17. c5 {[%emt 0:0:2]} bxc5 {[%emt 0:0:4]} 18. Rxc5 {[%emt 0:0:9]
} c6 {[%emt 0:0:7]} 19. Ne5 {[%emt 0:0:17]} Rfc8 {[%emt 0:0:0]} 20. Qe1 {[%emt 0:1:15]} Qb6 {[%emt 0:0:52]} 21. Rb1 {[%emt 0:0:14]} Ne8 {[%emt 0:1:22]} 22. b4 {[%emt 0:0:23]} f6 {[%emt 0:0:15]} 23. bxa5 {[%emt 0:0:0]} Qc7 {[%emt 0:0:1]} 24. a6 {[%emt 0:0:33]} 1-0

[Event "FIDE World Rapid-ch Open 2018"]
[White "Petrosian, Tigran L."]
[Black "Nakamura, Hikaru"]
[Site "St. Petersburg"]
[Round "6.11"]
[Annotator "RC"]
[Result "1-0"]
[Date "2018.12.27"]
[WhiteElo "2598"]
[BlackElo "2746"]
[PlyCount "121"]
[TimeControl "900+10"]

1. g3 {[%emt 0:0:0]} Nf6 {[%emt 0:0:0]} 2. Bg2 {[%emt 0:0:1]} d5 {[%emt 0:0:3]
} 3. Nf3 {[%emt 0:0:7]} e6 {[%emt 0:0:2]} 4. 0-0 {[%emt 0:0:0]} Be7 {[%emt 0:0:2]} 5. d3 {[%emt 0:0:2]} b6 {[%emt 0:0:1]} 6. Nbd2 {[%emt 0:0:41]
} Bb7 {[%emt 0:0:3]} 7. e4 {[%emt 0:0:32]} c5 {[%emt 0:0:13]} 8. e5 {[%emt 0:0:39]} Nfd7 {[%emt 0:0:2]} 9. Re1 {[%emt 0:0:2]} Nc6 {[%emt 0:0:6]
} 10. h4 {[%emt 0:1:11]} h6 {[%emt 0:0:46]} 11. Nf1 {[%emt 0:0:0]} Qc7 {[%emt 0:0:8]} 12. Qe2 {[%emt 0:0:1]} g5 {[%emt 0:0:49]} 13. hxg5 {[%emt 0:2:31]} hxg5 {[%emt 0:0:2]} 14. Bxg5 {[%emt 0:0:1]} Bxg5 {[%emt 0:0:20]
} 15. Nxg5 {[%emt 0:0:1]} Ndxe5 {[%emt 0:0:2]} 16. f4 {[%emt 0:0:10]
} Qe7 {[%emt 0:0:1]} 17. c3 {[%emt 0:2:10]} 0-0-0 {[%emt 0:0:0]} 18. Rad1 {[%emt 0:0:8]} Ng6 {[%emt 0:3:45]} 19. d4 {[%emt 0:0:18]} cxd4 {[%emt 0:0:8]} 20. cxd4 {[%emt 0:0:2]} Kb8 {[%emt 0:0:25]} 21. Nh2 {[%emt 0:1:43]
} Qf6 {[%emt 0:0:7]} 22. Ng4 {[%emt 0:0:33]} Qg7 {[%emt 0:0:0]} 23. Qe3 {[%emt 0:1:3]} Ka8 {[%emt 0:2:4]} 24. Ne5 {[%emt 0:0:38]} Ngxe5 {[%emt 0:0:27]} 25. dxe5 {[%emt 0:0:1]} Ne7 {[%emt 0:0:2]} 26. Rc1 {[%emt 0:1:4]
} Nf5 {[%emt 0:0:50]} 27. Qd3 {[%emt 0:0:9]} Rc8 {[%emt 0:0:0]} 28. b4 {[%emt 0:0:20]} Qf8 {[%emt 0:0:7]} 29. Rxc8+ {[%emt 0:0:17]} Bxc8 {[%emt 0:0:2]} 30. a3 {[%emt 0:0:11]} Qe7 {[%emt 0:0:5]} 31. Kf2 {[%emt 0:1:23]
} Bb7 {[%emt 0:0:57]} 32. Rh1 {[%emt 0:0:35]} Rxh1 {[%emt 0:0:0]} 33. Bxh1 {[%emt 0:0:0]} a5 {[%emt 0:0:1]} 34. Qc3 {[%emt 0:0:31]} Kb8 {[%emt 0:0:21]} 35. Bf3 {[%emt 0:0:4]} d4 {[%emt 0:0:21]} 36. Qc4 {[%emt 0:0:0]} Qd7 {[%emt 0:0:24]} 37. bxa5 {[%emt 0:0:19]} b5 {[%emt 0:1:8]} 38. Qc5 {[%emt 0:0:12]} d3 {[%emt 0:0:31]} 39. a6 {[%emt 0:1:46]} Bxa6 {[%emt 0:0:0]} 40. Qb6+ {[%emt 0:0:12]} Bb7 {[%emt 0:0:0]} 41. Bxb7 {[%emt 0:0:4]
} Qxb7 {[%emt 0:0:1]} 42. Qd8+ {[%emt 0:0:7]} Qc8 {[%emt 0:0:19]} 43. Qxd3 {[%emt 0:0:19]} Qc5+ {[%emt 0:0:7]} 44. Kg2 {[%emt 0:0:2]} Nd4 {[%emt 0:0:0]} 45. Kh3 {[%emt 0:0:39]} Qc4 {[%emt 0:0:27]} 46. Qd1 {[%emt 0:0:30]} Qc3 {[%emt 0:1:50]} 47. Nxf7 {[%emt 0:0:6]} Kc7 {[%emt 0:0:0]} 48. Ng5 {[%emt 0:0:8]
} Kb6 {[%emt 0:0:22]} 49. Kg4 {[%emt 0:0:14]} Ka5 {[%emt 0:0:0]} 50. Ne4 {[%emt 0:0:4]} Qc4 {[%emt 0:0:6]} 51. Qd2+ {[%emt 0:0:16]} Ka4 {[%emt 0:0:12]} 52. Qb2 {[%emt 0:0:27]} Nf5 {[%emt 0:0:19]} 53. Nc3+ {[%emt 0:0:10]
} Ka5 {[%emt 0:0:1]} 54. Qd2 {[%emt 0:0:2]} Ka6 {[%emt 0:0:0]} 55. Na2 {[%emt 0:0:24]} Qc8 {[%emt 0:0:35]} 56. Nb4+ {[%emt 0:0:3]} Kb7 {[%emt 0:0:9]} 57. Kf3 {[%emt 0:0:11]} Kb6 {[%emt 0:0:5]} 58. g4 {[%emt 0:0:7]
} Nh4+ {[%emt 0:0:3]} 59. Kg3 {[%emt 0:0:2]} Ng6 {[%emt 0:0:0]} 60. Qd6+ {[%emt 0:0:7]} Ka5 {[%emt 0:0:1]} 61. Nc6+ {[%emt 0:0:2]} 1-0

[Event "FIDE World Rapid-ch Open 2018"]
[White "Aronian, Levon"]
[Black "Sargissian, Gabriel"]
[Site "St. Petersburg"]
[Round "6.12"]
[Annotator "RC"]
[Result "1/2-1/2"]
[Date "2018.12.27"]
[WhiteElo "2765"]
[BlackElo "2689"]
[PlyCount "40"]
[TimeControl "900+10"]

1. e4 {[%emt 0:0:0]} e5 {[%emt 0:0:0]} 2. Nf3 {[%emt 0:0:0]} Nc6 {[%emt 0:0:0]
} 3. Bb5 {[%emt 0:0:0]} Nf6 {[%emt 0:0:2]} 4. 0-0 {[%emt 0:0:0]} Nxe4 {[%emt 0:0:5]} 5. Re1 {[%emt 0:0:0]} Nd6 {[%emt 0:0:3]} 6. Bf1 {[%emt 0:0:4]} Be7 {[%emt 0:0:14]} 7. Nxe5 {[%emt 0:0:3]} Nxe5 {[%emt 0:0:7]
} 8. Rxe5 {[%emt 0:0:2]} 0-0 {[%emt 0:0:3]} 9. d4 {[%emt 0:0:0]} Bf6 {[%emt 0:0:14]} 10. Re2 {[%emt 0:0:13]} Re8 {[%emt 0:0:17]} 11. c3 {[%emt 0:0:13]} Rxe2 {[%emt 0:1:4]} 12. Qxe2 {[%emt 0:0:23]} Nf5 {[%emt 0:0:29]
} 13. Bf4 {[%emt 0:0:21]} c6 {[%emt 0:0:58]} 14. Qc2 {[%emt 0:0:0]} d5 {[%emt 0:0:13]} 15. Bd3 {[%emt 0:0:2]} g6 {[%emt 0:0:12]} 16. Nd2 {[%emt 0:0:3]} Ng7 {[%emt 0:0:36]} 17. Re1 {[%emt 0:0:29]} Bf5 {[%emt 0:0:5]
} 18. Bxf5 {[%emt 0:0:2]} Nxf5 {[%emt 0:0:2]} 19. Nf3 {[%emt 0:0:2]
} Qd7 {[%emt 0:0:37]} 20. h3 {[%emt 0:2:14]} Re8 {[%emt 0:0:0]} 1/2-1/2

[Event "FIDE World Rapid-ch Open 2018"]
[White "Shirov, Alexei"]
[Black "Karjakin, Sergey"]
[Site "St. Petersburg"]
[Round "6.13"]
[Annotator "RC"]
[Result "1/2-1/2"]
[Date "2018.12.27"]
[WhiteElo "2643"]
[BlackElo "2753"]
[PlyCount "47"]
[TimeControl "900+10"]

1. e4 {[%emt 0:0:0]} e5 {[%emt 0:0:0]} 2. Nf3 {[%emt 0:0:0]} Nc6 {[%emt 0:0:0]
} 3. Bb5 {[%emt 0:0:0]} Nf6 {[%emt 0:0:0]} 4. 0-0 {[%emt 0:0:0]} Nxe4 {[%emt 0:0:0]} 5. Re1 {[%emt 0:0:1]} Nd6 {[%emt 0:0:0]} 6. Nxe5 {[%emt 0:0:2]} Be7 {[%emt 0:0:0]} 7. Bf1 {[%emt 0:0:2]} Nxe5 {[%emt 0:0:2]
} 8. Rxe5 {[%emt 0:0:3]} 0-0 {[%emt 0:0:2]} 9. Nc3 {[%emt 0:0:0]} Ne8 {[%emt 0:0:3]} 10. Nd5 {[%emt 0:0:31]} Bd6 {[%emt 0:0:2]} 11. Re1 {[%emt 0:0:3]} c6 {[%emt 0:0:6]} 12. Ne3 {[%emt 0:0:4]} Bc7 {[%emt 0:0:0]} 13. Nf5 {[%emt 0:0:14]} d5 {[%emt 0:0:2]} 14. Ne7+ {[%emt 0:0:3]} Kh8 {[%emt 0:0:1]} 15. Nxc8 {[%emt 0:0:3]} Rxc8 {[%emt 0:0:2]} 16. d4 {[%emt 0:0:36]
} f5 {[%emt 0:1:28]} 17. Qh5 {[%emt 0:5:8]} Nf6 {[%emt 0:0:0]} 18. Qh4 {[%emt 0:2:51]} Qd7 {[%emt 0:2:7]} 19. Bf4 {[%emt 0:0:33]} Rce8 {[%emt 0:0:36]} 20. Bd3 {[%emt 0:0:40]} Rxe1+ {[%emt 0:2:27]} 21. Rxe1 {[%emt 0:0:2]} Bxf4 {[%emt 0:0:2]} 22. Qxf4 {[%emt 0:0:2]} g6 {[%emt 0:0:0]} 23. Qe5 {[%emt 0:0:50]} Kg7 {[%emt 0:0:23]} 24. Qe7+ {[%emt 0:0:7]} 1/2-1/2

[Event "FIDE World Rapid-ch Open 2018"]
[White "Timofeev, Artyom"]
[Black "Harikrishna, Pentala"]
[Site "St. Petersburg"]
[Round "6.14"]
[Annotator "ChessBase"]
[Result "1-0"]
[Date "2018.12.27"]
[WhiteElo "2589"]
[BlackElo "2725"]
[PlyCount "129"]
[TimeControl "900+10"]

1. c4 {[%emt 0:0:0]} e5 {[%emt 0:0:0]} 2. e3 {[%emt 0:0:0]} Nf6 {[%emt 0:0:0]} 3. Nc3 {[%emt 0:0:0]} Nc6 {[%emt 0:0:11]} 4. d3 {[%emt 0:1:37]} g6 {[%emt 0:0:32]} 5. Nf3 {[%emt 0:0:27]} Bg7 {[%emt 0:0:2]} 6. Be2 {[%emt 0:0:0]} 0-0 {[%emt 0:0:3]} 7. 0-0 {[%emt 0:0:4]} d6 {[%emt 0:0:29]} 8. Rb1 {[%emt 0:0:26]} a5 {[%emt 0:0:9]} 9. a3 {[%emt 0:0:8]} Re8 {[%emt 0:0:26]
} 10. b4 {[%emt 0:0:28]} axb4 {[%emt 0:0:42]} 11. axb4 {[%emt 0:0:2]} e4 {[%emt 0:0:42]
} 12. Nxe4 {[%emt 0:0:12]} Nxe4 {[%emt 0:0:3]} 13. dxe4 {[%emt 0:0:3]
} Rxe4 {[%emt 0:0:2]} 14. Bb2 {[%emt 0:0:13]} Bxb2 {[%emt 0:0:0]} 15. Rxb2 {[%emt 0:0:2]} Qf6 {[%emt 0:0:4]} 16. Rd2 {[%emt 0:1:39]} b6 {[%emt 0:4:16]} 17. Qc1 {[%emt 0:3:38]} Bb7 {[%emt 0:0:43]} 18. Qb2 {[%emt 0:1:53]
} Ne5 {[%emt 0:3:25]} 19. Nxe5 {[%emt 0:2:3]} Rxe5 {[%emt 0:0:0]} 20. f4 {[%emt 0:1:23]} Re6 {[%emt 0:0:2]} 21. Qxf6 {[%emt 0:0:4]} Rxf6 {[%emt 0:0:1]} 22. Kf2 {[%emt 0:0:3]} Re6 {[%emt 0:0:56]} 23. c5 {[%emt 0:0:43]
} bxc5 {[%emt 0:0:53]} 24. bxc5 {[%emt 0:0:1]} dxc5 {[%emt 0:0:0]} 25. Rc1 {[%emt 0:0:15]} Rd6 {[%emt 0:1:6]} 26. Rb2 {[%emt 0:0:21]} Rb6 {[%emt 0:0:15]} 27. Rd2 {[%emt 0:0:3]} Ra5 {[%emt 0:0:37]} 28. Bf3 {[%emt 0:2:8]
} Bxf3 {[%emt 0:0:39]} 29. Kxf3 {[%emt 0:0:2]} Rd6 {[%emt 0:0:0]} 30. Rdc2 {[%emt 0:0:15]} Rd5 {[%emt 0:0:6]} 31. Rb2 {[%emt 0:0:30]} Ra3 {[%emt 0:0:50]} 32. Rbc2 {[%emt 0:0:5]} Rdd3 {[%emt 0:0:19]} 33. Re1 {[%emt 0:0:2]
} Rac3 {[%emt 0:0:41]} 34. Rxc3 {[%emt 0:0:3]} Rxc3 {[%emt 0:0:0]} 35. Rd1 {[%emt 0:0:4]} c4 {[%emt 0:0:23]} 36. Rd7 {[%emt 0:0:6]} Rc1 {[%emt 0:0:3]} 37. Rxc7 {[%emt 0:0:4]} c3 {[%emt 0:0:2]} 38. g4 {[%emt 0:0:34]
} f5 {[%emt 0:0:9]} 39. gxf5 {[%emt 0:0:22]} c2 {[%emt 0:0:0]} 40. Ke4 {[%emt 0:0:16]} gxf5+ {[%emt 0:0:22]} 41. Kxf5 {[%emt 0:0:4]} Re1 {[%emt 0:0:2]} 42. Rxc2 {[%emt 0:0:9]} Rxe3 {[%emt 0:0:0]} 43. Kf6 {[%emt 0:0:12]
} Re8 {[%emt 0:0:1]} 44. Rg2+ {[%emt 0:0:24]} Kf8 {[%emt 0:0:0]} 45. Rg7 {[%emt 0:0:29]} Re4 {[%emt 0:0:1]} 46. f5 {[%emt 0:0:3]} Rh4 {[%emt 0:0:6]} 47. Rf7+ {[%emt 0:0:5]} Kg8 {[%emt 0:1:24]} 48. Ra7 {[%emt 0:0:18]
} h6 {[%emt 0:0:11]} 49. Ra8+ {[%emt 0:0:22]} Kh7 {[%emt 0:0:0]} 50. Ra7+ {[%emt 0:0:1]} Kg8 {[%emt 0:0:1]} 51. Kg6 {[%emt 0:0:10]} Rg4+ {[%emt 0:0:1]} 52. Kxh6 {[%emt 0:0:4]} Kf8 {[%emt 0:0:27]} 53. Kh5 {[%emt 0:0:2]
} Rg2 {[%emt 0:0:1]} 54. h4 {[%emt 0:0:4]} Rg1 {[%emt 0:0:0]} 55. Kh6 {[%emt 0:0:1]} Rg4 {[%emt 0:0:17]} 56. h5 {[%emt 0:0:8]} Kg8 {[%emt 0:0:24]} 57. f6 {[%emt 0:0:9]} Kf8 {[%emt 0:0:8]} 58. Kh7 {[%emt 0:0:0]} Rg1 {[%emt 0:0:14]} 59. h6 {[%emt 0:0:11]} Rf1 {[%emt 0:0:9]} 60. Kg6 {[%emt 0:0:13]} Rg1+ {[%emt 0:0:1]} 61. Kf5 {[%emt 0:0:10]} Rf1+ {[%emt 0:0:2]
} 62. Ke6 {[%emt 0:0:11]} Re1+ {[%emt 0:0:2]} 63. Kd5 {[%emt 0:0:3]
} Rd1+ {[%emt 0:0:1]} 64. Ke4 {[%emt 0:0:16]} Re1+ {[%emt 0:0:0]} 65. Kd3 {[%emt 0:0:3]} 1-0

[Event "FIDE World Rapid-ch Open 2018"]
[White "Yudin, Sergei"]
[Black "Giri, Anish"]
[Site "St. Petersburg"]
[Round "6.15"]
[Annotator "RC"]
[Result "0-1"]
[Date "2018.12.27"]
[WhiteElo "2507"]
[BlackElo "2783"]
[PlyCount "78"]
[TimeControl "900+10"]

1. e4 {[%emt 0:1:44]} c5 {[%emt 0:0:0]} 2. Nf3 {[%emt 0:0:2]} d6 {[%emt 0:0:0]} 3. c3 {[%emt 0:0:26]} Nf6 {[%emt 0:0:0]} 4. h3 {[%emt 0:0:1]} Nc6 {[%emt 0:0:0]} 5. Bd3 {[%emt 0:0:7]} d5 {[%emt 0:0:4]} 6. e5 {[%emt 0:0:0]} Nd7 {[%emt 0:0:4]} 7. Bb5 {[%emt 0:0:1]} Qb6 {[%emt 0:0:7]} 8. Na3 {[%emt 0:0:28]
} e6 {[%emt 0:0:7]} 9. 0-0 {[%emt 0:0:29]} c4 {[%emt 0:1:44]} 10. b3 {[%emt 0:1:6]} Bxa3 {[%emt 0:4:56]} 11. Bxc6 {[%emt 0:0:3]} Be7 {[%emt 0:0:1]
} 12. Ba4 {[%emt 0:1:12]} 0-0 {[%emt 0:0:3]} 13. b4 {[%emt 0:0:0]} a5 {[%emt 0:0:18]} 14. b5 {[%emt 0:0:2]} Nc5 {[%emt 0:2:9]} 15. Ba3 {[%emt 0:0:7]} Bd7 {[%emt 0:0:2]} 16. Rb1 {[%emt 0:0:5]} f5 {[%emt 0:0:0]} 17. Bc2 {[%emt 0:1:5]} Rf7 {[%emt 0:3:6]} 18. Qe2 {[%emt 0:0:27]} g5 {[%emt 0:0:46]} 19. Nd4 {[%emt 0:0:36]} Rg7 {[%emt 0:0:28]} 20. g4 {[%emt 0:1:5]
} f4 {[%emt 0:0:1]} 21. Kg2 {[%emt 0:0:8]} Rf8 {[%emt 0:0:0]} 22. f3 {[%emt 0:0:4]} Be8 {[%emt 0:0:2]} 23. Rh1 {[%emt 0:1:27]} Bg6 {[%emt 0:0:10]} 24. Bxg6 {[%emt 0:0:3]} hxg6 {[%emt 0:0:37]} 25. Qf1 {[%emt 0:1:19]
} Kf7 {[%emt 0:0:10]} 26. Qg1 {[%emt 0:0:6]} Rh7 {[%emt 0:0:0]} 27. Rh2 {[%emt 0:0:33]} Re8 {[%emt 0:0:11]} 28. Rh1 {[%emt 0:0:2]} Nd3 {[%emt 0:0:11]} 29. Bxe7 {[%emt 0:0:2]} Rxe7 {[%emt 0:0:1]} 30. Re1 {[%emt 0:0:19]
} Nxe1+ {[%emt 0:1:30]} 31. Qxe1 {[%emt 0:0:1]} Rh4 {[%emt 0:0:0]} 32. a4 {[%emt 0:0:13]} Qc5 {[%emt 0:0:1]} 33. Qc1 {[%emt 0:0:13]} Re8 {[%emt 0:0:6]} 34. Rh2 {[%emt 0:0:2]} Reh8 {[%emt 0:0:4]} 35. Qb1 {[%emt 0:0:8]
} Qa3 {[%emt 0:1:11]} 36. Qc2 {[%emt 0:0:3]} R4h6 {[%emt 0:0:0]} 37. Qd1 {[%emt 0:0:3]} Qb2 {[%emt 0:0:11]} 38. Qc2 {[%emt 0:0:2]} Qa1 {[%emt 0:0:3]} 39. d3 {[%emt 0:0:59]} Qe1 {[%emt 0:0:15]} 0-1

[Event "FIDE World Rapid-ch Open 2018"]
[White "Grischuk, Alexander"]
[Black "Savchenko, Boris"]
[Site "St. Petersburg"]
[Round "6.16"]
[Annotator "RC"]
[Result "1/2-1/2"]
[Date "2018.12.27"]
[WhiteElo "2771"]
[BlackElo "2562"]
[PlyCount "79"]
[TimeControl "900+10"]

1. e4 {[%emt 0:3:19]} c5 {[%emt 0:1:19]} 2. Nc3 {[%emt 0:0:28]} Nc6 {[%emt 0:0:11]
} 3. Nf3 {[%emt 0:0:1]} g6 {[%emt 0:0:5]} 4. d4 {[%emt 0:0:0]} cxd4 {[%emt 0:0:1]} 5. Nxd4 {[%emt 0:0:2]} Bg7 {[%emt 0:0:2]} 6. Be3 {[%emt 0:0:2]} Nf6 {[%emt 0:0:2]} 7. Bc4 {[%emt 0:0:2]} 0-0 {[%emt 0:0:0]} 8. Bb3 {[%emt 0:0:10]} d6 {[%emt 0:0:4]} 9. f3 {[%emt 0:0:3]} Bd7 {[%emt 0:0:8]
} 10. Qd2 {[%emt 0:1:23]} Nxd4 {[%emt 0:0:16]} 11. Bxd4 {[%emt 0:0:2]
} b5 {[%emt 0:0:3]} 12. a4 {[%emt 0:0:24]} bxa4 {[%emt 0:0:0]} 13. Bxa4 {[%emt 0:2:43]} Be6 {[%emt 0:2:57]} 14. 0-0 {[%emt 0:0:14]} Qc7 {[%emt 0:0:20]} 15. Rfc1 {[%emt 0:2:51]} Qb7 {[%emt 0:0:57]} 16. Nd1 {[%emt 0:1:8]
} Rfc8 {[%emt 0:2:6]} 17. Ne3 {[%emt 0:0:39]} Bh6 {[%emt 0:0:0]} 18. Ra3 {[%emt 0:0:25]} Rc4 {[%emt 0:1:38]} 19. Bb3 {[%emt 0:0:46]} Qb4 {[%emt 0:0:31]} 20. Qxb4 {[%emt 0:3:8]} Rxb4 {[%emt 0:0:3]} 21. Bxe6 {[%emt 0:0:5]
} Rxd4 {[%emt 0:0:8]} 22. Ba2 {[%emt 0:0:13]} Rb8 {[%emt 0:0:0]} 23. Re1 {[%emt 0:0:17]} Rxb2 {[%emt 0:0:20]} 24. Bb3 {[%emt 0:0:1]} Bxe3+ {[%emt 0:1:17]} 25. Rxe3 {[%emt 0:0:1]} Rd1+ {[%emt 0:0:9]} 26. Kf2 {[%emt 0:0:2]} e6 {[%emt 0:0:8]} 27. Rxa7 {[%emt 0:0:19]} d5 {[%emt 0:0:0]} 28. exd5 {[%emt 0:0:16]} Nxd5 {[%emt 0:0:3]} 29. Re1 {[%emt 0:0:13]} Rd2+ {[%emt 0:0:29]} 30. Re2 {[%emt 0:0:3]} Rxe2+ {[%emt 0:0:9]} 31. Kxe2 {[%emt 0:0:1]} Nf4+ {[%emt 0:0:5]} 32. Kf2 {[%emt 0:0:36]} Nd3+ {[%emt 0:0:0]} 33. Ke3 {[%emt 0:0:3]} Nc5 {[%emt 0:0:4]} 34. Kd4 {[%emt 0:0:10]} Nxb3+ {[%emt 0:0:2]} 35. Kc3 {[%emt 0:0:1]} Rb1 {[%emt 0:0:5]} 36. cxb3 {[%emt 0:0:2]
} Rc1+ {[%emt 0:0:3]} 37. Kd3 {[%emt 0:0:14]} Rd1+ {[%emt 0:0:0]} 38. Kc3 {[%emt 0:0:8]} Rc1+ {[%emt 0:0:3]} 39. Kd3 {[%emt 0:0:22]} Rd1+ {[%emt 0:0:2]} 40. Kc3 {[%emt 0:0:8]} 1/2-1/2

[Event "FIDE World Rapid-ch Open 2018"]
[White "Sakaev, Konstantin"]
[Black "Guseinov, Gadir"]
[Site "St. Petersburg"]
[Round "6.17"]
[Annotator "ChessBase"]
[Result "1/2-1/2"]
[Date "2018.12.27"]
[WhiteElo "2584"]
[BlackElo "2664"]
[PlyCount "80"]
[TimeControl "900+10"]

1. d4 {[%emt 0:0:0]} g6 {[%emt 0:0:0]} 2. c4 {[%emt 0:0:0]} Bg7 {[%emt 0:0:0]} 3. e4 {[%emt 0:0:0]} d6 {[%emt 0:0:1]} 4. Nc3 {[%emt 0:0:0]} Nf6 {[%emt 0:0:2]} 5. Be2 {[%emt 0:0:4]} 0-0 {[%emt 0:0:2]} 6. Be3 {[%emt 0:0:0]} c6 {[%emt 0:0:14]} 7. Nf3 {[%emt 0:0:30]} e5 {[%emt 0:0:4]} 8. d5 {[%emt 0:0:53]
} Ng4 {[%emt 0:0:32]} 9. Bg5 {[%emt 0:0:2]} f6 {[%emt 0:0:13]
} 10. Bh4 {[%emt 0:0:25]} h5 {[%emt 0:0:27]} 11. Nd2 {[%emt 0:0:28]} Nh6 {[%emt 0:0:17]
} 12. f3 {[%emt 0:0:6]} Nf7 {[%emt 0:0:16]} 13. b4 {[%emt 0:0:0]} a5 {[%emt 0:0:32]} 14. bxa5 {[%emt 0:0:40]} Qxa5 {[%emt 0:0:11]} 15. Qc2 {[%emt 0:0:32]} c5 {[%emt 0:2:4]} 16. 0-0 {[%emt 0:0:32]} Nd7 {[%emt 0:0:0]} 17. Nb3 {[%emt 0:0:51]} Qd8 {[%emt 0:0:1]} 18. a4 {[%emt 0:0:13]} Bh6 {[%emt 0:0:17]} 19. Nb5 {[%emt 0:2:12]} Nb8 {[%emt 0:1:18]} 20. Nc1 {[%emt 0:0:57]
} Na6 {[%emt 0:0:8]} 21. Nd3 {[%emt 0:0:2]} Bg5 {[%emt 0:0:0]} 22. Bxg5 {[%emt 0:0:34]} Nxg5 {[%emt 0:0:28]} 23. Qb2 {[%emt 0:1:22]} Qe7 {[%emt 0:1:8]} 24. Nc3 {[%emt 0:0:8]} Nf7 {[%emt 0:0:49]} 25. a5 {[%emt 0:0:37]
} Nc7 {[%emt 0:0:12]} 26. Qd2 {[%emt 0:0:30]} Bd7 {[%emt 0:0:0]} 27. Rfb1 {[%emt 0:0:23]} Rfb8 {[%emt 0:0:14]} 28. Rb6 {[%emt 0:0:41]} Ra6 {[%emt 0:1:11]} 29. Qb2 {[%emt 0:0:14]} Rxb6 {[%emt 0:0:37]} 30. Qxb6 {[%emt 0:0:22]
} Qd8 {[%emt 0:0:1]} 31. Bd1 {[%emt 0:0:41]} Ra8 {[%emt 0:0:0]} 32. Qb2 {[%emt 0:1:31]} Ne8 {[%emt 0:0:52]} 33. Qxb7 {[%emt 0:0:40]} Rb8 {[%emt 0:0:10]} 34. Qa7 {[%emt 0:0:2]} f5 {[%emt 0:1:11]} 35. exf5 {[%emt 0:0:45]
} gxf5 {[%emt 0:0:49]} 36. Nf2 {[%emt 0:0:56]} h4 {[%emt 0:0:0]} 37. a6 {[%emt 0:0:42]} Ra8 {[%emt 0:0:40]} 38. Qb7 {[%emt 0:0:1]} Rb8 {[%emt 0:0:0]} 39. Qa7 {[%emt 0:0:17]} Ra8 {[%emt 0:0:16]} 40. Qb7 {[%emt 0:0:1]
} Rb8 {[%emt 0:0:4]} 1/2-1/2

[Event "FIDE World Rapid-ch Open 2018"]
[White "Zhigalko, Sergei"]
[Black "Alekseev, Evgeny"]
[Site "St. Petersburg"]
[Round "6.18"]
[Annotator "ChessBase"]
[Result "1/2-1/2"]
[Date "2018.12.27"]
[WhiteElo "2604"]
[BlackElo "2639"]
[PlyCount "46"]
[TimeControl "900+10"]

1. e4 {[%emt 0:0:0]} c5 {[%emt 0:1:7]} 2. Nf3 {[%emt 0:0:0]} e6 {[%emt 0:0:0]} 3. c3 {[%emt 0:0:0]} d5 {[%emt 0:0:7]} 4. exd5 {[%emt 0:0:0]} Qxd5 {[%emt 0:0:8]} 5. d4 {[%emt 0:0:3]} Nf6 {[%emt 0:0:13]} 6. Na3 {[%emt 0:0:26]
} Nc6 {[%emt 0:0:14]} 7. Be3 {[%emt 0:0:14]} cxd4 {[%emt 0:0:0]} 8. Nb5 {[%emt 0:0:3]} Qd8 {[%emt 0:0:32]} 9. Nbxd4 {[%emt 0:0:2]} Nd5 {[%emt 0:0:23]} 10. Bd3 {[%emt 0:0:3]} Nxe3 {[%emt 0:0:53]} 11. fxe3 {[%emt 0:0:2]
} Bd7 {[%emt 0:0:14]} 12. Qc2 {[%emt 0:0:16]} g6 {[%emt 0:0:0]} 13. 0-0-0 {[%emt 0:2:48]} Bg7 {[%emt 0:0:6]} 14. Kb1 {[%emt 0:0:27]} 0-0 {[%emt 0:3:18]} 15. h4 {[%emt 0:0:5]} h6 {[%emt 0:2:9]} 16. Nxc6 {[%emt 0:9:9]
} bxc6 {[%emt 0:0:2]} 17. Qd2 {[%emt 0:0:5]} Qf6 {[%emt 0:0:0]} 18. Rhf1 {[%emt 0:1:56]} Rad8 {[%emt 0:1:39]} 19. e4 {[%emt 0:0:8]} Qe7 {[%emt 0:1:38]} 20. Qe3 {[%emt 0:0:13]} c5 {[%emt 0:0:5]} 21. e5 {[%emt 0:0:30]
} Bc6 {[%emt 0:0:8]} 22. Be4 {[%emt 0:0:4]} Bb5 {[%emt 0:0:0]} 23. Rfe1 {[%emt 0:0:14]} Rfe8 {[%emt 0:0:29]} 1/2-1/2

[Event "FIDE World Rapid-ch Open 2018"]
[White "Khanin, Semen"]
[Black "Anand, Viswanathan"]
[Site "St. Petersburg"]
[Round "6.19"]
[Annotator "RC"]
[Result "0-1"]
[Date "2018.12.27"]
[WhiteElo "2514"]
[BlackElo "2773"]
[PlyCount "62"]
[TimeControl "900+10"]

1. e4 {[%emt 0:0:0]} e5 {[%emt 0:0:0]} 2. Nf3 {[%emt 0:0:0]} Nc6 {[%emt 0:0:0]
} 3. Bc4 {[%emt 0:0:0]} Bc5 {[%emt 0:0:0]} 4. 0-0 {[%emt 0:0:0]} Nf6 {[%emt 0:0:0]} 5. d3 {[%emt 0:0:1]} d6 {[%emt 0:0:4]} 6. c3 {[%emt 0:0:3]
} a6 {[%emt 0:0:6]} 7. Bb3 {[%emt 0:0:5]} Ba7 {[%emt 0:0:4]
} 8. h3 {[%emt 0:0:4]} h6 {[%emt 0:0:10]} 9. Re1 {[%emt 0:0:8]} g5 {[%emt 0:0:7]
} 10. Be3 {[%emt 0:2:34]} g4 {[%emt 0:0:24]} 11. hxg4 {[%emt 0:0:0]} Bxe3 {[%emt 0:0:3]} 12. Rxe3 {[%emt 0:0:12]} Nxg4 {[%emt 0:0:3]} 13. Re1 {[%emt 0:0:9]} Qf6 {[%emt 0:0:7]} 14. Nbd2 {[%emt 0:8:0]} Bd7 {[%emt 0:0:25]
} 15. Nf1 {[%emt 0:0:24]} 0-0-0 {[%emt 0:0:34]} 16. Ne3 {[%emt 0:0:32]
} Rdg8 {[%emt 0:0:26]} 17. Nd5 {[%emt 0:0:19]} Qg7 {[%emt 0:0:0]} 18. g3 {[%emt 0:0:1]} h5 {[%emt 0:0:37]} 19. Kf1 {[%emt 0:0:36]} h4 {[%emt 0:0:51]
} 20. gxh4 {[%emt 0:0:54]} f5 {[%emt 0:0:24]} 21. exf5 {[%emt 0:0:18]
} Bxf5 {[%emt 0:0:13]} 22. Qd2 {[%emt 0:0:46]} Rf8 {[%emt 0:0:0]} 23. Ne3 {[%emt 0:0:51]} Bd7 {[%emt 0:2:0]} 24. Bd5 {[%emt 0:1:9]} Nf6 {[%emt 0:0:20]} 25. Bxc6 {[%emt 0:0:56]} Bxc6 {[%emt 0:0:4]} 26. Ng5 {[%emt 0:0:1]
} Qg6 {[%emt 0:1:0]} 27. Ke2 {[%emt 0:0:41]} Rxh4 {[%emt 0:0:0]} 28. Rg1 {[%emt 0:0:1]} Qh5+ {[%emt 0:0:5]} 29. Ke1 {[%emt 0:0:6]} Ng4 {[%emt 0:0:34]} 30. Nxg4 {[%emt 0:0:38]} Rxg4 {[%emt 0:0:4]} 31. Rxg4 {[%emt 0:0:6]
} Qxg4 {[%emt 0:0:3]} 0-1